Cogmind - Beta 16 @@@ ROGUE MODE // 2025.11.13 @ 04:22:01 Player: shapeshifter Result: Destroyed by YI-UF0 with YI-UF0's Doublenader Performance ------------- Evolutions (0) 0 Regions Visited (2) 400 Robots Destroyed (18) 90 Value Destroyed (265) 265 Prototype IDs (4) 80 Alien Tech Used (0) 0 Bonus (-21) -21 TOTAL SCORE: 814 Bonus ------- Friendly Fire -21 Cogmind --------- Core Integrity 0/250 Matter 240/300 Energy 92/100 System Corruption 8% Temperature Cool (25) Movement Core (200) Ox3 Location -10/Mines Parts ------- > --- POWER (1) -------- (None) > --- PROPULSION (2) --- (None) > --- UTILITY (2) ------ Medium Storage Unit > --- WEAPON (2) ------- Small Laser > --- INVENTORY (10) --- Light Ion Engine Wheel High-capacity Storage Unit Huge Storage Unit High-capacity Matter Pod (154) Improved Trap Extractor (0/6) Grenade Launcher Improved Datajack Peak State ------------ > --- POWER ------------ Ion Engine > --- PROPULSION ------- Light Treads Light Treads > --- UTILITY ---------- Medium Storage Unit Seismic Detector > --- WEAPON ----------- Light Assault Rifle Improved Datajack > --- INVENTORY -------- Light Ion Engine Wheel High-capacity Storage Unit Huge Storage Unit High-capacity Matter Pod Light Armor Plating Improved Trap Extractor Medium Laser Small Laser Grenade Launcher [Rating: 10] Favorites ----------- Power Ion Engine Engine Ion Engine Propulsion Light Treads Treads Light Treads Wheel Compact Wheel Utility Seismic Detector Device Seismic Detector Storage Medium Storage Unit Protection Light Armor Plating Weapon Light Assault Rifle Energy Gun Medium Laser Ballistic Gun Light Assault Rifle Special Melee Weapon Improved Datajack Build | -11 -10 -10 ------- Run | Yrd Mat Min Slots Evolved . | . . . Power . | . . . Propulsion . | . . . Utility . | . . . Weapon . | . . . Parts Attached 15 | 8 2 5 Power 1 | 1 . . Engine 1 | 1 . . Core . | . . . Reactor . | . . . Propulsion 5 | 3 1 1 Treads 4 | 2 1 1 Leg . | . . . Wheel 1 | 1 . . Hover . | . . . Flight . | . . . Utility 5 | 2 1 2 Device 2 | 1 . 1 Storage 2 | 1 1 . Processor . | . . . Hackware . | . . . Protection 1 | . . 1 Artifact . | . . . Weapon 4 | 2 . 2 Energy Gun 2 | 1 . 1 Energy Cannon . | . . . Ballistic Gun 1 | 1 . . Ballistic Cannon . | . . . Launcher . | . . . Special Weapon . | . . . Impact Weapon . | . . . Slashing Weapon . | . . . Piercing Weapon . | . . . Special Melee Weapon 1 | . . 1 Unidentified Prototypes . | . . . Corrupted Parts 1 | . . 1 System Corruption 8 | . . 8 Parts Lost 7 | . . 7 Power 1 | . . 1 Propulsion 2 | . . 2 Utility 2 | . . 2 Weapon 2 | . . 2 Highest Loss Streak 7 | . . 7 To Critical Strikes . | . . . Average Backups 9 | 4 9 9 Power . | . 1 1 Propulsion 1 | 1 2 1 Utility 4 | . 4 4 Weapon 1 | 1 1 2 Tool/Special . | . . . Unused Backups 9 | . 2 7 Power 1 | . . 1 Propulsion 1 | . . 1 Utility 6 | . 2 4 Weapon 1 | . . 1 Tool/Special . | . . . Average Slot Usage (%) 99 | . 100 99 Engine 13 | . 14 13 Treads 27 | . 28 27 Device 13 | . 14 13 Storage 14 | . 14 14 Energy Gun 13 | . 14 12 Ballistic Gun 13 | . 14 13 Peak Build Rating 10 | 8 8 10 Average Rating 7 | 5 7 8 On Entrance 5 | . 8 8 Avg Prop Armor Cover (%) . | . . . Naked Turns . | . . . Heaviest Build 19 | 14 19 19 Greatest Support 40 | 40 40 40 Greatest Overweight (x) . | . . . Average Overweight (x) . | . . . Largest Inventory Capacity 10 | 8 10 10 Average Capacity 9 | 7 9 10 Most Carried 10 | 7 10 10 Average Carried 9 | 4 9 9 Final Capacity 10 | 8 10 10 Final Carried 10 | 7 10 8 Class Distribution -------------------- 100% | Mutant Dominant Class ---------------- Mutant | -10/Materials Mutant | -10/Mines Resources | -11 -10 -10 ----------- Run | Yrd Mat Min Matter Collected 530 | 295 64 171 Remotely . | . . . Salvage Created 519 | 190 237 92 Parts 37 | 15 19 3 Haulers Intercepted 1 | . 1 . Recyclers Shooed 2 | . 2 . Parts Field Recycled . | . . . Retrieved Matter . | . . . Parts Self-Destructed . | . . . Prevented . | . . . Parts Restored . | . . . Kills | -11 -10 -10 ------- Run | Yrd Mat Min Combat Hostiles Destroyed 7 | . 5 2 Guns 7 | . 5 2 Classes Destroyed 7 | 3 4 . Worker 2 | 2 . . Tunneler 4 | 4 . . Hauler 1 | . 1 . Recycler 1 | 1 . . Watcher 3 | . 3 . Swarmer 3 | . 3 . Grunt 4 | . 2 2 Best Kill Streak 3 | 3 3 1 Combat Bots Only 3 | . 3 1 Max Kills in Single Turn 1 | 1 1 1 Gunslinging . | . . . Exploded . | . . . Melee . | . . . Uniques/NPCs Destroyed . | . . . Combat | -11 -10 -10 -------- Run | Yrd Mat Min Hostile Shots Fired 72 | . 26 46 Missed 18 | . 3 15 Hits 54 | . 23 31 Projectile 54 | . 23 31 AOE 23 | . . 23 Damage Taken 1094 | . 208 886 Core 252 | . 21 231 Absorbed by Shields . | . . . Core Remaining (%) 100 | 100 . . Volleys Fired 69 | 15 31 23 Largest 2 | 2 2 2 Hottest 70 | 70 70 70 Shots Fired 134 | 30 62 42 Gun 134 | 30 62 42 Cannon . | . . . Launcher . | . . . Special . | . . . Kinetic 65 | 15 31 19 Thermal 69 | 15 31 23 Explosive . | . . . Electromagnetic . | . . . Robot Hit Streak 8 | 4 7 8 Robot Miss Streak 3 | 3 2 2 Penetration Max . | . . . Secondary Targets 1 | . 1 . Max Gunslinging Chain 1 | . 1 . Shots Hit Robots 86 | 16 40 30 Core Hits 32 | 8 15 9 Critical Kills . | . . . Critical Parts Destroyed . | . . . Critical Strikes 5 | 2 3 . Burn 5 | 2 3 . Melee Attacks 2 | . . 2 Impact . | . . . Slashing . | . . . Piercing . | . . . Sneak Attacks 2 | . . 2 Combat Hostiles . | . . . Follow-up Attacks . | . . . Damage Inflicted 880 | 183 417 280 Guns 880 | 183 417 280 Cannons . | . . . Explosions . | . . . Melee . | . . . Ramming . | . . . Kinetic 290 | 44 151 95 Thermal 590 | 139 266 185 Explosive . | . . . Electromagnetic . | . . . Impact . | . . . Slashing . | . . . Piercing . | . . . Highest Corruption 8 | . . 8 Average Corruption 8 | . . 8 Corruption Purged . | . . . Corruption Blocked . | . . . Effects 20 | . . 20 Message Errors 4 | . . 4 Matter Fused 6 | . . 6 Heat Flow Errors 2 | . . 2 Energy Discharges 5 | . . 5 Data Loss (minor) 2 | . . 2 Misfires 1 | . . 1 Overload Shots . | . . . Overflow Damage . | . . . Projectiles . | . . . Explosions . | . . . Melee . | . . . Knockbacks . | . . . Impact . | . . . Kinetic . | . . . Secondary . | . . . Self-Inflicted Damage . | . . . Shots . | . . . Rammed . | . . . Targets Rammed . | . . . Kicked . | . . . Crushed . | . . . Highest Temperature 210 | 70 210 201 Average Temperature 66 | 25 87 62 Received Heat Transfer 126 | . 48 78 Siege Activations . | . . . Martial Activations . | . . . Shielding Activations . | . . . Robots Disrupted . | . . . Combat Hostiles . | . . . Robots Corrupted . | . . . Combat Hostiles . | . . . Parts Fried . | . . . Impact Corruptions . | . . . Robots Melted . | . . . Combat Hostiles . | . . . Parts Melted 3 | 2 1 . Heat Transferred 2050 | 555 999 496 Parts Sabotaged . | . . . Parts Stolen . | . . . Parts Stripped . | . . . Power Chain Reactions . | . . . Alert | -11 -10 -10 ------- Run | Yrd Mat Min Maximum Alert Level . | . . . Low Security (%) 100 | 100 100 100 Level 1 . | . . . Level 2 . | . . . Level 3 . | . . . Level 4 . | . . . Level 5 . | . . . High Security . | . . . Max Security . | . . . Peak Influence 60 | 5 60 40 Initial . | . . . Average 5 | 1 15 1 Influence Increases 232 | 35 147 50 Destroy 0b10 Robot/C 140 | . 100 40 Destroy 0b10 Robot/NC 55 | 35 20 . Destroy Leader 28 | . 18 10 Successful Hack 9 | . 9 . Influence Decreases 232 | 35 147 50 Time Decay 232 | 35 147 50 Squads Dispatched . | . . . Investigation . | . . . Extermination . | . . . Reinforcement . | . . . Assault . | . . . Garrison . | . . . Intercept . | . . . Searches Triggered . | . . . Construction Impeded . | . . . Haulers Reinforced . | . . . Active Scanning Responses . | . . . Cargo Convoy Interrupts . | . . . Stealth | -11 -10 -10 --------- Run | Yrd Mat Min Distress Signals 1 | . 1 . Communications Jammed . | . . . Distress Signals . | . . . Times Spotted 13 | . 10 3 Peak Tracking Total 3 | . 3 2 Tactical Retreats . | . . . Traps | -11 -10 -10 ------- Run | Yrd Mat Min Traps Triggered 1 | . . 1 Indirectly . | . . . Trap Hack Attempts . | . . . Triggered . | . . . Disarmed . | . . . Reprogrammed . | . . . Reused . | . . . Traps Extracted . | . . . Installed . | . . . Triggered . | . . . Machines | -11 -10 -10 ---------- Run | Yrd Mat Min Machines Disabled . | . . . Max in Single Turn . | . . . Machines Repaired . | . . . Machines Dismantled . | . . . Machines Sabotaged . | . . . Overloaded Fab Kills . | . . . Hacking | -11 -10 -10 --------- Run | Yrd Mat Min Machines Accessed 4 | . 3 1 Terminals 3 | . 3 . Fabricators . | . . . Repair Stations . | . . . Recycling Units . | . . . Scanalyzers . | . . . Garrison Access . | . . . Total Hacks 11 | . 10 1 Successful 6 | . 5 1 Failed 5 | . 5 . Catastrophic 1 | . 1 . Database Lockouts . | . . . Manual 9 | . 9 . Terminals 10 | . 10 . Fabricators . | . . . Repair Stations . | . . . Recycling Units . | . . . Scanalyzers . | . . . Garrison Access . | . . . Terminal Hacks 2 | . 1 1 Prototype ID Bank 1 | . 1 . Open Door 1 | . . 1 Fabricator Hacks . | . . . Repair Station Hacks . | . . . Recycling Unit Hacks . | . . . Scanalyzer . | . . . Garrison Access Hacks . | . . . Unauthorized Hacks 4 | . 4 . Terminals 4 | . 4 . Operators 1 | . 1 . Skim 3 | . 3 . Fabricators . | . . . Repair Stations . | . . . Recycling Units . | . . . Scanalyzers . | . . . Garrison Access . | . . . Data Cores Recovered . | . . . Used . | . . . Hacking Detections 3 | . 3 . Full Trace Events . | . . . Feedback Events . | . . . Feedback Blocked . | . . . Robot Schematics Acquired . | . . . Robots Built . | . . . Authchips . | . . . Time . | . . . Total Robot Build Rating . | . . . Part Schematics Acquired . | . . . Parts Built . | . . . Authchips . | . . . Time . | . . . Total Part Build Rating . | . . . Part Studies Acquired . | . . . Parts Repaired . | . . . Time . | . . . Parts Recycled . | . . . Recycled Matter . | . . . Retrieved Matter . | . . . Retrieved Components . | . . . Parts Scanalyzed . | . . . Part Schematics Acquired . | . . . Parts Damaged . | . . . Bothacking | -11 -10 -10 ------------ Run | Yrd Mat Min Used RIF Installer . | . . . Robots Hacked 2 | . . 2 Non-combat 1 | . . 1 Combat 1 | . . 1 Robot Hacks Applied 2 | . . 2 parse_system 1 | . . 1 no_distress 1 | . . 1 Relay Couplers Released . | . . . Fabnet Peak Effective % . | . . . Robots Rewired . | . . . Allies Hacked . | . . . Hacks Repelled . | . . . Allies | -11 -10 -10 -------- Run | Yrd Mat Min Total Allies 3 | . . 3 Largest Group 3 | . . 3 Highest-Rated Group 40 | . . 40 Highest-Rated Ally 16 | . . 16 Total Orders . | . . . Ally Attacks 2 | . . 2 Total Damage 14 | . . 14 Kills . | . . . Allies Corrupted . | . . . Allies Melted . | . . . Intel | -11 -10 -10 ------- Run | Yrd Mat Min Active Infowar (turns) 1699 | 51 462 1186 Seismic 1699 | 51 462 1186 Robot Analysis Total . | . . . Derelict Logs Recovered 1 | . . 1 Drone Launches . | . . . Drone Recoveries . | . . . Exploration | -11 -10 -10 ------------- Run | Yrd Mat Min Turns Passed 1883 | 204 462 1217 Spaces Moved 1011 | 97 224 690 Core 13 | 13 . . Treads 998 | 84 224 690 Legs . | . . . Wheels . | . . . Hover . | . . . Flight . | . . . Fastest Speed 50 | 50 160 160 Average Speed 158 | 145 160 160 Slowest Speed 160 | 160 160 160 Overloaded Moves . | . . . Propulsion Burnouts . | . . . Robots Hopped . | . . . Potential Cave-ins . | . . . Cave-ins Triggered . | . . . Exploration Rate (%) 47 | 7 42 92 Regions Visited 2 Branch Regions 1 Pre-discovered Areas . | . . . Known Exits Taken . | . . . Unknown Exits Taken 2 | 1 1 . Scrap Searched . | . . . Spaces Dug . | . . . Terrain Destroyed . | . . . Melee . | . . . Projectile . | . . . AOE . | . . . Terrain Rammed . | . . . Walls Destroyed . | . . . Machines Disabled . | . . . Actions | -11 -10 -10 --------- Run | Yrd Mat Min Total 1172 | 132 274 766 Wait 48 | . 7 41 Move 1009 | 96 223 690 Hop . | . . . Pick Up 21 | 13 6 2 Fast Attach 1 | 1 . . Attach 8 | 6 . 2 Detach . | . . . Swap 7 | 1 2 4 Drop 7 | . 5 2 Fire 69 | 15 31 23 Melee 2 | . . 2 Ram . | . . . Kick . | . . . Crush . | . . . Escape Stasis . | . . . Rewire . | . . . Trap . | . . . Miscellaneous . | . . . Route ------- -11/Scrapyard -10/Materials (discovered 2 exits: [*Mat] / *Min) -10/Mines (discovered 2 exits: [*Mat x2]) History --------- Turn | Location | Event 11 | -11/Scrapyard | Discovered new exit (range 16) 205 | -11/Scrapyard | Entered Materials 302 | -10/Materials | Build established: Mutant 471 | -10/Materials | Discovered new exit (range 8) 562 | -10/Materials | Discovered new exit (range 3) 667 | -10/Materials | Entered Mines 698 | -10/Mines | Discovered new exit (range 9) 888 | -10/Mines | Learned 4 Materials zone layouts 932 | -10/Mines | Met a Derelict who couldn't figure out how to use a Trap Extractor 1115 | -10/Mines | Discovered new exit (range 9) 1178 | -10/Mines | YI-UF0 nonchalantly dropped a Grenade Launcher on the ground 1624 | -10/Mines | Assisted by bots powering up and referring to "LRC-V3" 1872 | -10/Mines | Core integrity fell below 50% 1880 | -10/Mines | Core integrity fell below 20% 1884 | -10/Mines | Destroyed by YI-UF0 with YI-UF0's Doublenader Last Messages --------------- 01855_ Mercenary 1a destroyed. 01855_ Trooper 1b destroyed. 01855_ YI-UF0: "BOOSH!" 01855_ Trooper 1a destroyed. 01857_ Med. Laser destroyed. 01857_ YI-UF0: "BADABOOM!" 01857_ T-07 Excavator destroyed. 01859_ YI-UF0: "BOOM!" 01859_ R-06 Scavenger destroyed. 01861_ YI-UF0: "BADABOOM!" 01861_ U-05 Engineer destroyed. 01865_ Lgt. Treads destroyed. 01868_ The unstable cave ceiling collapses. 01869_ Lgt. Armor Plating destroyed. 01873_ Lgt. Treads destroyed. 01875_ YI-UF0 mumbles something. 01875_ The unstable cave ceiling collapses. 01875_ Lgt. Assault Rifle destroyed. 01879_ Ion Engine destroyed. 01883_ The unstable cave ceiling collapses. Map ----- +----------------------------------------------------+ | ### ## ##?# ###### #??? | | #?###### #?## ##??## #??? | | ##??# #??## #???## ##??? | | ##??# ## ##??# #?????###???? | | ##???# #### #?## #???????????? | | # #????## #???## ### ##???????????? | | ## #?????####?????# ### #????????????? | | ## #??????????????# ##?# ##???????????? | | # #??????????????## #?## ##??????????? | | ######??????????## #?# """ #??????????? | | ## ##??????????# #?# """ ##?????????? | | ##???#####?# #?# """ ##????????? | | #??## ### ### """ ###??????? | | ## #?## ## ## ##?????? | | ?### ##?# ## #?????? | | ???###### #??# ## #?????? | | ????????# #### ####### ##?????? | | ????????# #?????# #####??????? | | ????????# ####???## ## ##??????????? | | ????????###### #### ???####### #???????????? | | ?????????????# ## ######???# #???????????? | | ?????????????# ## # ##??# #???????????? | | #??????????### = #### #???????????? | | #####?????## =% ######??????? | | ##???## != # %##?????? | | #??## @ g = ##????? | | #?## # # #????? | | #### # #### | #????? | | ##### #### ##??## ##????? | | ##?# ##??# ##????### ##?????? | | ##?# #???# ######???????# #??????? | | #??# #???# ?????????????# #??????? | | ???# ##???# # ??????????????# #??????? | | ???#######???# #??????????????# #??????? | | ?????????????# ############????# #??????? | | ?????????????## # ###### #??????? | | ??????????????## # """ #??????? | | ???????????????## ## """ #??????? | | ????????????????###?# """ < #########??????? | | ????????????????????# """ #??????????????? | | ????????????????????# #??????????????? | | ????????????????????############??????????????? | | ??????????????????????????????????????????????? | | | | | | | | | | | | | | | +----------------------------------------------------+ Best States ------------- Heat Dissipation 25 Energy Generation 10 Energy Capacity 250 Matter Stores 300 Matter Capacity 300 Sight Range 16 Terrain Scan Density 10 Armor Coverage 150 Evasion (%) 50 Recoil Reduction 2 Item Schematics ----------------- None Robot Schematics ------------------ None Fabricated ------------ Nothing Repaired ---------- Nothing Studied --------- None Alien Tech Used ----------------- None Achievements -------------- None Challenges ------------ None Game ------ Seed TargetCompactFilter Manual? 0 Play Time 00:09:39 Cumulative 494.7 hours Start 2025.11.13 @ 04:15:36 End 2025.11.13 @ 04:22:01 Sessions 1 Manual Loads 0 Difficulty Rogue Special Mode None Game No. 662 Rogue 662 Adventurer 0 Explorer 0 Win Type - Total 15 Types 7/0/2/2/1/0/2/1/0/0 Lore% 91 Gallery% 85 Achievement% 66 Wizard Run 0 Options --------- Layout 0 ASCII 0 Keyboard 0 Movement Mouse Keybinds 0 Fullscreen 1 Font 24/Terminus Map View 76x50 Zoom Use 0% Tactical HUD 1 Map Filters NONE Filters NONE Steam 1 RUN: 6fd7e94f-6bed-4c2a-9e8d-ac7bf73d535a